bitfinex/quotes_BTCUSD_20241021
["timestamp","ask_amount","ask_price","bid_price","bid_amount"]
[1729517503665,0.29621415,67909.0,67908.0,0.005]
[1729517504115,0.14895915,67909.0,67904.0,0.005]
[1729517504399,0.14895915,67909.0,67905.0,0.005]
[1729517504623,0.14895915,67909.0,67906.0,0.147262]
[1729517505065,0.14895915,67909.0,67908.0,0.002]
[1729517505290,0.14895915,67909.0,67905.0,0.005]
[1729517505520,0.14895915,67909.0,67903.0,0.005]
[1729517505778,0.147261,67907.0,67903.0,0.005]
[1729517506047,0.147261,67907.0,67897.0,0.22113457]
[1729517506048,0.15395915,67906.0,67892.0,0.001654]
[1729517506295,0.24729,67893.0,67892.0,0.001654]
[1729517506502,0.39624915,67893.0,67892.0,0.001654]
[1729517506722,0.24895915,67893.0,67892.0,0.001654]
[1729517506946,0.39624915,67893.0,67892.0,0.001654]
[1729517507173,0.42924915,67893.0,67892.0,0.001654]
[1729517508117,0.26295915,67893.0,67892.0,0.001654]
[1729517508355,0.26295915,67893.0,67892.0,0.148946]
[1729517508356,0.16295915,67893.0,67892.0,0.148946]
[1729517508578,0.17695915,67893.0,67892.0,0.148946]
[1729517508805,0.17695915,67893.0,67892.0,0.001654]
[1729517509251,0.3915,67903.0,67897.0,0.147281]
[1729517509482,0.22113457,67907.0,67898.0,0.002]
[1729517509483,0.14895915,67902.0,67898.0,0.002]
[1729517509713,0.14895915,67902.0,67898.0,0.147278]
[1729517509931,0.14895915,67902.0,67896.0,0.002]
[1729517510150,0.14895915,67902.0,67897.0,0.147281]
[1729517510400,0.14895915,67902.0,67898.0,0.002]
[1729517510682,0.04360967,67914.0,67906.0,0.294522]
[1729517510945,0.27481968,67917.0,67906.0,0.294522]
[1729517510946,0.37009372,67913.0,67912.0,0.147249]
[1729517511194,0.37009372,67913.0,67912.0,0.002]
[1729517511426,0.14895915,67913.0,67912.0,0.002]
[1729517511865,0.14895915,67913.0,67910.0,0.0065]
[1729517512086,0.294506,67911.0,67908.0,0.005]
[1729517512346,0.14895915,67910.0,67896.0,0.0065]
[1729517512561,0.14895915,67910.0,67895.0,0.005]
[1729517512562,0.1,67907.0,67895.0,0.005]
[1729517512784,0.294529,67905.0,67895.0,0.005]
[1729517513009,0.1,67907.0,67895.0,0.005]
[1729517513010,0.294546,67901.0,67895.0,0.005]
[1729517513257,0.14895915,67900.0,67895.0,0.005]
[1729517513477,0.44350915,67900.0,67895.0,0.005]
[1729517513703,0.147278,67899.0,67892.0,0.148946]
[1729517513927,0.147282,67897.0,67894.0,0.0065]
[1729517514145,0.147282,67897.0,67892.0,0.001654]
[1729517514146,0.14895915,67896.0,67892.0,0.001654]
[1729517514585,0.147286,67895.0,67892.0,0.001654]
[1729517514864,0.14895915,67894.0,67892.0,0.001654]
[1729517516687,0.22113457,67899.0,67892.0,0.001654]
[1729517516688,0.014,67899.0,67897.0,0.147281]
[1729517516905,0.37009372,67898.0,67894.0,0.147288]
[1729517517134,0.14895915,67898.0,67897.0,0.002]
[1729517517585,0.14895915,67898.0,67897.0,0.149281]
[1729517517805,0.14895915,67898.0,67894.0,0.002]
[1729517518053,0.14895915,67898.0,67897.0,0.147281]
[1729517518309,0.028,67899.0,67893.0,0.294577]
[1729517518310,0.014,67899.0,67898.0,0.155779]
[1729517518528,0.14895915,67899.0,67894.0,0.0065]
[1729517518766,0.14895915,67898.0,67894.0,0.0065]
[1729517519735,0.16295915,67898.0,67894.0,0.0085]
[1729517519940,0.14895915,67898.0,67894.0,0.0085]
[1729517520161,0.16295915,67898.0,67894.0,0.155787]
[1729517520381,0.32424015,67898.0,67894.0,0.0065]
[1729517520602,0.17695915,67898.0,67894.0,0.0065]
[1729517520821,0.16295915,67898.0,67894.0,0.0065]
[1729517521031,0.17695915,67898.0,67893.0,0.147289]
[1729517521254,0.17695915,67898.0,67895.0,0.005]
[1729517522111,0.16295915,67898.0,67895.0,0.005]
[1729517522987,0.14895915,67898.0,67895.0,0.005]
[1729517523183,0.16295915,67898.0,67895.0,0.005]
[1729517523514,0.17695915,67898.0,67895.0,0.005]
[1729517524183,0.16295915,67898.0,67895.0,0.005]
[1729517524402,0.17695915,67898.0,67895.0,0.005]
[1729517524864,0.028,67898.0,67897.0,0.153781]
[1729517525098,0.028,67898.0,67897.0,0.0065]
[1729517525817,0.028,67898.0,67894.0,0.002]
[1729517525818,0.17695915,67898.0,67895.0,0.005]
[1729517526050,0.14895915,67897.0,67893.0,0.0065]
[1729517526265,0.14895915,67897.0,67892.0,0.001654]
[1729517526266,0.14729,67893.0,67892.0,0.001654]
[1729517526498,0.29624915,67893.0,67892.0,0.001654]
[1729517527956,0.73328372,67893.0,67892.0,0.001654]
[1729517528184,0.75441733,67893.0,67892.0,0.001654]
[1729517528435,0.76841733,67893.0,67892.0,0.001654]
[1729517529332,0.76841733,67893.0,67885.0,0.006]
[1729517529333,0.552401,67888.0,67885.0,0.006]
[1729517529579,0.87558984,67888.0,67885.0,0.006]
[1729517529825,0.74472833,67888.0,67885.0,0.006]
[1729517530970,0.75872833,67888.0,67879.0,0.001652]
[1729517531367,0.84592007,67888.0,67879.0,0.001652]
[1729517531614,0.85374108,67888.0,67879.0,0.001652]
[1729517531865,0.74472833,67888.0,67879.0,0.001652]
[1729517532075,0.75872833,67888.0,67879.0,0.001652]
[1729517532305,0.75872833,67888.0,67875.0,0.22113457]
[1729517532306,0.01,67885.0,67875.0,0.07777257]
[1729517532551,0.14895915,67877.0,67870.0,0.006]
[1729517532810,0.70759715,67871.0,67870.0,0.006]
[1729517534382,0.72159715,67871.0,67870.0,0.006]
[1729517534609,0.73559715,67871.0,67870.0,0.006]
[1729517534847,0.77590515,67871.0,67870.0,0.006]
[1729517535313,0.73559715,67871.0,67870.0,0.006]
[1729517535538,0.77590515,67871.0,67870.0,0.006]
[1729517535982,0.73559715,67871.0,67870.0,0.006]
[1729517537954,0.005,67852.0,67843.0,0.22113457]
[1729517538169,0.29634015,67851.0,67843.0,0.22113457]
[1729517538386,0.147392,67846.0,67843.0,0.22113457]
[1729517538606,0.14895915,67851.0,67839.0,0.0085]
[1729517538843,0.147384,67850.0,67842.0,0.0065]
[1729517539065,0.14895915,67851.0,67843.0,0.005]
[1729517539291,0.147385,67850.0,67843.0,0.007]
[1729517539507,0.14895915,67851.0,67843.0,0.007]
[1729517539508,0.14895915,67849.0,67843.0,0.007]
[1729517540149,0.147388,67848.0,67846.0,0.002]
[1729517540370,0.14895915,67847.0,67846.0,0.002]
[1729517541027,0.14895915,67847.0,67843.0,0.005]
[1729517541028,0.14895915,67847.0,67843.0,0.007]
[1729517541686,0.14895915,67847.0,67843.0,0.154398]
[1729517541912,0.14895915,67847.0,67843.0,0.007]
[1729517542349,0.147392,67846.0,67843.0,0.005]
[1729517542652,0.147392,67846.0,67839.0,0.005]
[1729517542653,0.29635115,67846.0,67839.0,0.005]
[1729517542787,0.29635115,67846.0,67825.0,0.1901]
[1729517543061,0.29635115,67846.0,67826.0,0.22113457]
[1729517543062,0.147433,67827.0,67826.0,0.22113457]
[1729517543281,0.147438,67825.0,67819.0,0.22196857]
[1729517543510,0.29639715,67825.0,67819.0,0.000834]
[1729517543731,0.29639715,67825.0,67819.0,0.005834]
[1729517543979,0.14895915,67825.0,67820.0,0.14750033]
[1729517544193,0.14895915,67825.0,67820.0,5.233e-05]
[1729517544414,0.31039715,67825.0,67820.0,5.233e-05]
[1729517545289,0.31039715,67825.0,67819.0,0.000834]
[1729517545290,0.43839715,67825.0,67819.0,0.000834]
[1729517545511,0.44339715,67825.0,67819.0,0.000834]
[1729517545727,0.42939715,67825.0,67819.0,0.000834]
[1729517545947,0.44739715,67825.0,67819.0,0.000834]
[1729517546164,0.42439715,67825.0,67819.0,0.000834]
[1729517546416,0.43339715,67825.0,67819.0,0.000834]
[1729517546900,0.41039715,67825.0,67819.0,0.000834]
[1729517547129,0.43839715,67825.0,67819.0,0.000834]
[1729517547368,0.46639715,67825.0,67819.0,0.000834]
[1729517548065,0.43839715,67825.0,67819.0,0.000834]
[1729517548757,0.14895915,67825.0,67819.0,0.000834]
[1729517549029,0.147424,67832.0,67826.0,0.002]
[1729517549254,0.22113457,67830.0,67826.0,0.0765]
[1729517549489,0.22113457,67830.0,67824.0,0.000834]
[1729517549490,0.147438,67825.0,67824.0,0.000834]
[1729517549712,0.31039715,67825.0,67824.0,0.000834]
[1729517549938,0.29639715,67825.0,67824.0,0.000834]
[1729517550167,0.32939715,67825.0,67824.0,0.000834]
[1729517550394,0.44339715,67825.0,67824.0,0.000834]
[1729517550886,0.43839715,67825.0,67824.0,0.000834]
[1729517551108,0.41039715,67825.0,67824.0,0.000834]
[1729517551330,0.39639715,67825.0,67824.0,0.000834]
[1729517551783,0.41039715,67825.0,67824.0,0.000834]
[1729517552231,0.42439715,67825.0,67824.0,0.000834]
[1729517552698,0.41039715,67825.0,67824.0,0.000834]
[1729517554013,0.42439715,67825.0,67824.0,0.000834]
[1729517554536,0.41039715,67825.0,67824.0,0.000834]
[1729517554758,0.42439715,67825.0,67824.0,0.000834]
[1729517556460,0.028,67825.0,67824.0,0.000834]
[1729517556694,0.028,67825.0,67824.0,0.423774]
[1729517556931,0.028,67825.0,67824.0,0.4712348]
[1729517557278,0.22113457,67838.0,67837.0,0.236912]
[1729517557279,0.22113457,67838.0,67837.0,0.421612]
[1729517557958,0.22113457,67845.0,67844.0,0.153896]
[1729517558172,0.22113457,67845.0,67844.0,0.0065]
[1729517558409,0.147384,67850.0,67844.0,0.0065]
[1729517558635,0.22113457,67852.0,67844.0,0.0065]
[1729517558872,0.147394,67845.0,67844.0,0.0065]
[1729517559142,0.14895915,67845.0,67843.0,0.0065]
[1729517559371,0.1,67858.0,67844.0,0.0065]
[1729517559640,0.014,67845.0,67844.0,0.153896]
[1729517559859,0.014,67845.0,67844.0,0.2836659]
[1729517560064,0.22113457,67867.0,67857.0,0.147368]
[1729517560065,0.22113457,67860.0,67857.0,0.147368]
[1729517560283,0.22113457,67860.0,67859.0,0.002]
[1729517560487,0.22113457,67860.0,67854.0,0.0065]
[1729517560488,0.22113457,67860.0,67854.0,0.1898]
[1729517560713,0.14895915,67859.0,67854.0,0.0065]
[1729517560943,0.147373,67855.0,67854.0,0.0065]
[1729517561159,0.147371,67856.0,67854.0,0.0065]
[1729517561377,0.17044161,67861.0,67854.0,0.153874]
[1729517561703,0.147363,67860.0,67854.0,0.0065]
[1729517561851,0.1,67866.0,67854.0,0.0065]
[1729517562077,0.1,67863.0,67856.0,0.14737]
[1729517562318,0.1,67863.0,67854.0,0.301247]
[1729517562319,0.24895915,67863.0,67854.0,0.302247]
[1729517562530,0.014,67856.0,67854.0,0.0075]
[1729517562756,0.014,67856.0,67855.0,0.149373]
[1729517563013,0.22113457,67866.0,67865.0,0.0065]
[1729517563443,0.22113457,67866.0,67862.0,0.0808]
[1729517563444,0.147344,67868.0,67867.0,0.0065]
[1729517563650,0.29630315,67868.0,67867.0,0.0065]
[1729517564078,0.14895915,67868.0,67867.0,0.0065]
[1729517564330,0.14895915,67868.0,67859.0,0.0065]
[1729517564331,0.147362,67860.0,67859.0,0.0065]
[1729517564542,0.14895915,67867.0,67862.0,0.0065]
[1729517564753,0.147363,67860.0,67859.0,0.0065]
[1729517564953,0.294718,67862.0,67855.0,0.0075]
[1729517565157,0.14895915,67861.0,67855.0,0.001]
[1729517565366,0.14895915,67861.0,67854.0,0.0065]
[1729517565367,0.14895915,67861.0,67856.0,0.0065]
[1729517565625,0.294715,67863.0,67862.0,0.001]
[1729517565830,0.394702,67865.0,67862.0,0.001]
[1729517566061,0.29631215,67864.0,67863.0,0.002]
[1729517566300,0.394703,67865.0,67863.0,0.002]
[1729517566532,0.394703,67865.0,67864.0,0.002]
[1729517566533,0.1,67865.0,67864.0,0.002]
[1729517566775,0.001656,67871.0,67870.0,0.002]
[1729517567016,0.001656,67871.0,67870.0,0.23874]
[1729517567665,0.001656,67871.0,67870.0,0.0065]
[1729517567666,0.148994,67871.0,67870.0,0.0065]
[1729517568373,0.011656,67871.0,67870.0,0.0075]
[1729517568592,0.158994,67871.0,67870.0,0.0065]
[1729517568831,0.011656,67871.0,67870.0,0.0065]
[1729517569074,0.024656,67871.0,67870.0,0.0075]
[1729517569300,0.037656,67871.0,67870.0,0.0085]
[1729517569557,0.037656,67871.0,67870.0,0.58399915]
[1729517569774,0.037656,67871.0,67870.0,0.43304]
[1729517570234,0.0374786,67871.0,67870.0,0.43304]
[1729517570706,0.0144786,67871.0,67870.0,0.43204]
[1729517570920,0.0154786,67871.0,67870.0,0.44204]
[1729517571136,0.0154786,67871.0,67870.0,0.5351821]
[1729517571612,0.22113457,67887.0,67886.0,0.153805]
[1729517571844,0.22113457,67887.0,67886.0,0.233805]
[1729517572079,0.29539,67898.0,67891.0,0.0065]
[1729517572303,0.147312,67883.0,67881.0,0.0065]
[1729517572532,0.147312,67883.0,67880.0,0.002]
[1729517572533,0.147312,67883.0,67882.0,0.22113457]
[1729517572747,0.147316,67881.0,67880.0,0.0065]
[1729517572959,0.294624,67884.0,67880.0,0.0065]
[1729517573248,0.305608,67887.0,67883.0,0.22113457]
[1729517573404,0.158303,67887.0,67886.0,0.002]
[1729517573634,0.1473,67889.0,67886.0,0.002]
[1729517573848,0.294593,67891.0,67886.0,0.003]
[1729517573849,0.008,67887.0,67886.0,0.003]
[1729517574078,0.294565,67897.0,67889.0,0.002]
[1729517574313,0.1,67893.0,67892.0,0.002]
[1729517574603,0.1,67900.0,67894.0,0.002]
[1729517574823,0.1,67897.0,67894.0,0.002]
[1729517575488,0.14978615,67898.0,67895.0,0.294572]
[1729517575489,0.000827,67898.0,67895.0,0.294572]
[1729517575710,0.000827,67898.0,67895.0,0.147284]
[1729517575923,0.012827,67898.0,67895.0,0.294568]
[1729517576140,0.012827,67898.0,67894.0,0.0095]
[1729517576338,0.012827,67898.0,67895.0,0.147285]
[1729517576553,0.012827,67898.0,67897.0,0.002]
[1729517576554,0.000827,67898.0,67897.0,0.002]
[1729517576751,0.012827,67898.0,67897.0,0.002]
[1729517577587,0.012827,67898.0,67895.0,0.001]
[1729517577795,0.012827,67898.0,67897.0,0.001]
[1729517577796,0.164106,67898.0,67897.0,0.001]
[1729517577992,0.164106,67898.0,67895.0,0.001]
[1729517577993,0.147282,67897.0,67895.0,0.001]
[1729517578348,0.016827,67898.0,67893.0,0.0065]
[1729517578349,0.008827,67898.0,67896.0,0.002]
[1729517578800,0.020827,67898.0,67897.0,0.001]
[1729517579215,0.008827,67898.0,67896.0,0.002]
[1729517579434,0.008827,67898.0,67897.0,0.002]
[1729517579657,0.020827,67898.0,67896.0,0.003]
[1729517579879,0.012827,67898.0,67897.0,0.153781]
[1729517580128,0.012827,67898.0,67897.0,0.35337495]
[1729517580347,0.000827,67898.0,67897.0,0.39214015]
[1729517581062,0.007827,67898.0,67897.0,0.40214015]
[1729517581286,0.27113457,67914.0,67908.0,0.160758]
[1729517581933,0.05,67914.0,67908.0,0.160758]
[1729517582173,0.05,67914.0,67913.0,0.170747]
[1729517582819,0.05,67914.0,67913.0,0.2073601]
[1729517583259,0.05,67914.0,67913.0,0.160747]
[1729517583476,0.006,67926.0,67925.0,0.0065]
[1729517583900,0.006,67926.0,67925.0,0.002]
[1729517583901,0.153219,67926.0,67925.0,0.002]
[1729517584121,0.153219,67926.0,67921.0,0.0065]
[1729517584122,0.15495915,67926.0,67921.0,0.0065]
[1729517584345,0.14895915,67925.0,67914.0,0.0065]
[1729517584556,0.14895915,67925.0,67913.0,0.22313457]
[1729517584557,0.441722,67916.0,67915.0,0.0065]
[1729517584793,0.147255,67909.0,67908.0,0.22213457]
[1729517585027,0.29621415,67909.0,67908.0,0.22113457]
[1729517585247,0.29621415,67909.0,67896.0,0.22113457]
[1729517585248,0.1,67908.0,67898.0,0.0065]
[1729517585464,0.147277,67899.0,67898.0,0.0065]
[1729517586756,0.294551,67900.0,67898.0,0.0065]
[1729517586966,0.29623615,67899.0,67898.0,0.005]
[1729517587413,0.147294,67891.0,67890.0,0.22113457]
[1729517587647,0.29625315,67891.0,67890.0,0.22763457]
[1729517587856,0.14895915,67891.0,67885.0,0.0065]
[1729517588081,0.147305,67886.0,67885.0,0.0065]
[1729517588302,0.147307,67885.0,67884.0,0.0085]
[1729517588590,0.147307,67885.0,67883.0,0.0065]
[1729517588786,0.29626915,67884.0,67883.0,0.005]
[1729517589018,0.14895915,67884.0,67883.0,0.0065]
[1729517589229,0.14895915,67884.0,67883.0,0.0085]
[1729517589439,0.294584,67893.0,67879.0,0.147319]
[1729517589440,0.009,67891.0,67888.0,0.002]
[1729517589649,0.14895915,67890.0,67888.0,0.002]
[1729517589891,0.14731,67884.0,67883.0,0.0065]
[1729517590103,0.29626915,67884.0,67883.0,0.0065]
[1729517590330,0.29626915,67884.0,67883.0,0.005]
[1729517590548,0.147325,67877.0,67876.0,0.002]
[1729517591002,0.14732,67879.0,67878.0,0.005]
[1729517591225,0.294637,67880.0,67878.0,0.005]
[1729517591448,0.147318,67880.0,67879.0,0.005]
[1729517591669,0.147325,67877.0,67876.0,0.002]
[1729517591894,0.29628415,67877.0,67875.0,0.002]
[1729517592145,0.14895915,67877.0,67876.0,0.0085]
[1729517592408,0.14895915,67877.0,67876.0,0.0065]
[1729517592639,0.14895915,67877.0,67874.0,0.0065]
[1729517592886,0.22213457,67884.0,67864.0,0.005]
[1729517592887,0.37009372,67876.0,67864.0,0.005]
[1729517593106,0.294685,67869.0,67865.0,0.22113457]
[1729517593363,0.147377,67853.0,67847.0,0.0065]
[1729517593585,0.147377,67853.0,67848.0,0.0065]
[1729517593824,0.294759,67852.0,67843.0,0.0065]
[1729517594071,0.1,67864.0,67850.0,0.0065]
[1729517594322,0.14895915,67863.0,67855.0,0.0065]
[1729517595011,0.14737,67856.0,67855.0,0.005]
[1729517595232,0.29632915,67856.0,67855.0,0.005]
[1729517595479,0.14895915,67856.0,67855.0,0.005]
[1729517595688,0.14895915,67856.0,67855.0,0.0085]
[1729517596245,0.14895915,67856.0,67855.0,0.155873]
[1729517596451,0.14895915,67856.0,67855.0,0.0085]
[1729517596705,0.14895915,67856.0,67855.0,0.007984]
[1729517597156,0.16295915,67856.0,67855.0,0.007984]
[1729517597375,0.14895915,67856.0,67855.0,0.0065]
[1729517597603,0.14895915,67856.0,67855.0,0.007984]
[1729517597843,0.16295915,67856.0,67855.0,0.007984]
[1729517598082,0.17695915,67856.0,67855.0,0.0065]
[1729517598510,0.32432915,67856.0,67855.0,0.0065]
[1729517598726,0.31032915,67856.0,67855.0,0.0065]
[1729517598946,0.32432915,67856.0,67855.0,0.0065]
[1729517599406,0.29632915,67856.0,67855.0,0.0065]
[1729517599617,0.31032915,67856.0,67855.0,0.0075]
[1729517599865,0.32432915,67856.0,67855.0,0.0075]
[1729517600299,0.32432915,67856.0,67855.0,0.001]
[1729517600301,0.33832915,67856.0,67855.0,0.002]
[1729517600552,0.33832915,67856.0,67846.0,0.22113457]
[1729517600553,0.16295915,67856.0,67846.0,0.22113457]
[1729517600776,0.14739,67847.0,67846.0,0.22113457]
[1729517601004,0.29634915,67847.0,67846.0,0.22613457]
[1729517601232,0.14895915,67847.0,67846.0,0.005]
[1729517601475,0.14895915,67847.0,67837.0,0.0065]
[1729517601476,0.14741,67838.0,67837.0,0.0065]
[1729517601730,0.29636915,67838.0,67837.0,0.0065]
[1729517602882,0.29636915,67838.0,67836.0,0.001484]
[1729517603129,0.147406,67840.0,67839.0,0.005]
[1729517603359,0.147401,67842.0,67841.0,0.005]
[1729517603579,0.147401,67842.0,67841.0,0.006484]
[1729517603801,0.147401,67842.0,67841.0,0.005]
[1729517604075,0.013,67847.0,67845.0,0.001484]
[1729517604298,0.14895915,67846.0,67845.0,0.001484]
[1729517604511,0.14895915,67846.0,67844.0,0.001484]
[1729517604954,0.14895915,67846.0,67843.0,0.0065]
[1729517605673,0.16295915,67846.0,67843.0,0.0065]
[1729517606148,0.29635215,67846.0,67843.0,0.0065]
[1729517606378,0.16295915,67846.0,67845.0,0.001]
[1729517606634,0.16295915,67846.0,67843.0,0.0065]
[1729517606897,0.147396,67844.0,67843.0,0.001]
[1729517607125,0.29635515,67844.0,67843.0,0.006]
[1729517607584,0.14895915,67844.0,67843.0,0.006]
[1729517608345,0.29635515,67844.0,67843.0,0.007484]
[1729517608596,0.14895915,67844.0,67843.0,0.007484]
[1729517608844,0.014,67846.0,67845.0,0.155378]
[1729517609066,0.14738,67852.0,67848.0,0.001484]
[1729517609311,0.14895915,67851.0,67849.0,0.001]
[1729517609560,0.14895915,67851.0,67848.0,0.000484]
[1729517609561,0.14895915,67851.0,67848.0,0.001484]
[1729517610002,0.1,67860.0,67851.0,0.0065]
[1729517610216,0.147374,67855.0,67851.0,0.0065]
[1729517610452,0.147379,67852.0,67851.0,0.005]
[1729517610903,0.294754,67853.0,67851.0,0.0065]
[1729517611122,0.14895915,67854.0,67851.0,0.0065]
[1729517611337,0.147378,67853.0,67851.0,0.0065]
[1729517611563,0.147378,67853.0,67851.0,0.005]
[1729517611564,0.147379,67852.0,67851.0,0.005]
[1729517611834,0.147378,67853.0,67851.0,0.0065]
[1729517612064,0.147379,67852.0,67851.0,0.0065]
[1729517612276,0.147379,67852.0,67851.0,0.0075]
[1729517612486,0.147379,67852.0,67851.0,0.0065]
[1729517612487,0.161379,67852.0,67851.0,0.0065]
[1729517612714,0.161379,67852.0,67851.0,0.005]
[1729517612715,0.60509815,67852.0,67851.0,0.005]
[1729517612940,0.70309815,67852.0,67851.0,0.001]
[1729517614077,0.70309815,67852.0,67851.0,0.001827]
[1729517615170,0.71709815,67852.0,67851.0,0.001827]
[1729517615849,0.81999815,67852.0,67851.0,0.001827]
[1729517616793,0.023516,67848.0,67843.0,0.005]
[1729517617014,0.023516,67848.0,67833.0,0.22113457]
[1729517617015,0.170403,67841.0,67840.0,0.22613457]
[1729517617235,0.31936215,67841.0,67840.0,0.22613457]
[1729517617443,0.17195915,67841.0,67835.0,0.005]
[1729517617651,0.147414,67836.0,67835.0,0.005]
[1729517617871,0.147414,67836.0,67825.0,0.000828]
[1729517617872,0.14895915,67836.0,67827.0,0.005]
[1729517618094,0.22113457,67845.0,67825.0,0.005828]
[1729517618095,0.44379215,67835.0,67825.0,0.005828]
[1729517618312,0.147427,67830.0,67829.0,0.005]
[1729517618554,0.29638615,67830.0,67829.0,0.005]
[1729517619245,0.29638615,67830.0,67825.0,0.000828]
[1729517619246,0.147436,67826.0,67825.0,0.000828]
[1729517619595,0.29639515,67826.0,67825.0,0.000828]
[1729517621036,0.14895915,67826.0,67825.0,0.000828]
[1729517621269,0.14895915,67826.0,67825.0,0.005828]
[1729517621753,0.014,67826.0,67825.0,0.15625]
[1729517622445,0.028,67826.0,67825.0,0.23235]
[1729517623114,0.014,67826.0,67825.0,0.33235]
[1729517624254,0.22113457,67837.0,67836.0,0.0065]
[1729517624438,0.37009372,67837.0,67836.0,0.0065]
[1729517624906,0.147403,67841.0,67833.0,0.14742]
[1729517624907,0.22113457,67844.0,67841.0,0.0065]
[1729517625165,0.14895915,67843.0,67841.0,0.0065]
[1729517625383,0.29635815,67843.0,67841.0,0.0065]
[1729517625604,0.14895915,67843.0,67841.0,0.0065]
[1729517625874,0.14895915,67843.0,67836.0,0.294825]
[1729517625875,0.294751,67854.0,67845.0,0.0065]
[1729517626085,0.22113457,67851.0,67847.0,0.0065]
[1729517626325,0.14895915,67851.0,67847.0,0.0065]
[1729517626558,0.14895915,67851.0,67849.0,0.0065]
[1729517627729,0.001654,67855.0,67851.0,0.0065]
[1729517627965,0.22113457,67853.0,67851.0,0.0065]
[1729517628200,0.001654,67855.0,67851.0,0.0065]
[1729517628201,0.14895915,67852.0,67851.0,0.0065]
[1729517628646,0.001654,67855.0,67854.0,0.007984]
[1729517628878,0.001654,67855.0,67854.0,0.005]
[1729517629089,0.149027,67855.0,67854.0,0.005]
[1729517629509,0.15061315,67855.0,67854.0,0.005]
[1729517629718,0.44536215,67855.0,67851.0,0.0065]
[1729517629933,0.457776,67855.0,67854.0,0.005]
[1729517630418,0.147394,67845.0,67844.0,0.0065]
[1729517630644,0.147394,67845.0,67838.0,0.001484]
[1729517630645,0.147399,67843.0,67842.0,0.22113457]
[1729517630860,0.147399,67843.0,67842.0,0.22613457]
[1729517631091,0.29635815,67843.0,67842.0,0.005]
[1729517631522,0.14895915,67843.0,67842.0,0.005]
[1729517632154,0.29635815,67843.0,67842.0,0.005]
[1729517632837,0.014,67845.0,67844.0,0.0065]
[1729517633070,0.014,67845.0,67844.0,0.153896]
[1729517633504,0.014,67845.0,67844.0,0.16038]
[1729517633720,0.05,67851.0,67850.0,0.153867]
[1729517634383,0.05,67851.0,67850.0,0.155367]
[1729517635058,0.064,67851.0,67850.0,0.155367]
[1729517636158,0.078,67851.0,67850.0,0.155367]
[1729517637881,0.079654,67851.0,67850.0,0.155367]
[1729517641848,0.079654,67851.0,67850.0,0.007984]
[1729517642351,0.22861315,67851.0,67850.0,0.0065]
[1729517642516,0.37599415,67851.0,67850.0,0.005]
[1729517642729,0.67076115,67851.0,67850.0,0.005]
[1729517642951,0.22861315,67851.0,67850.0,0.005]
[1729517643229,0.36199415,67851.0,67850.0,0.005]
[1729517643695,0.67075815,67851.0,67850.0,0.005]
[1729517643904,0.22861315,67851.0,67850.0,0.005]
[1729517644124,0.21461315,67851.0,67850.0,0.005]
[1729517644343,0.22861315,67851.0,67850.0,0.005]
[1729517644799,0.21461315,67851.0,67850.0,0.006484]
[1729517645021,0.36199415,67851.0,67850.0,0.005]
[1729517645242,0.22861315,67851.0,67850.0,0.006484]
[1729517645681,0.22861315,67851.0,67850.0,0.153867]
[1729517646812,0.22861315,67851.0,67850.0,0.005]
[1729517649631,0.22861315,67851.0,67850.0,0.006484]
[1729517649839,0.22861315,67851.0,67850.0,0.007311]
[1729517650305,0.22861315,67851.0,67850.0,0.005827]
[1729517652554,0.22861315,67851.0,67850.0,0.15321]
[1729517652794,0.079654,67851.0,67850.0,0.15471]
[1729517653241,0.079654,67851.0,67850.0,0.156194]
[1729517653456,0.079654,67851.0,67850.0,0.161194]
[1729517653904,0.065654,67851.0,67850.0,0.161194]
[1729517654360,0.071654,67851.0,67850.0,0.161194]
[1729517654574,0.057654,67851.0,67850.0,0.161194]
[1729517655025,0.054654,67851.0,67850.0,0.161194]
[1729517655243,0.051654,67851.0,67850.0,0.010827]
[1729517655474,0.068654,67851.0,67850.0,0.012327]
[1729517655721,0.068654,67851.0,67850.0,0.15971]
[1729517655941,0.051654,67851.0,67850.0,0.15971]
[1729517656158,0.061654,67851.0,67850.0,0.15971]
[1729517656376,0.061654,67851.0,67850.0,0.161194]
[1729517657563,0.074654,67851.0,67850.0,0.161194]
[1729517657841,0.088654,67851.0,67850.0,0.161194]
[1729517658036,0.064654,67851.0,67850.0,0.161194]
[1729517658506,0.074654,67851.0,67850.0,0.161194]
[1729517658738,0.074654,67851.0,67850.0,0.156194]
[1729517659256,0.074654,67851.0,67850.0,0.007327]
[1729517659496,0.22361315,67851.0,67850.0,0.005827]
[1729517660187,0.21061315,67851.0,67850.0,0.005827]
[1729517660427,0.21061315,67851.0,67850.0,0.000827]
[1729517660428,0.40149235,67851.0,67850.0,0.000827]
[1729517660663,0.40149235,67851.0,67850.0,0.005827]
[1729517660664,0.41549235,67851.0,67850.0,0.005827]
[1729517660888,0.47100922,67851.0,67850.0,0.005827]
[1729517661107,0.46317198,67851.0,67850.0,0.005827]
[1729517661331,0.47101317,67851.0,67850.0,0.005827]
[1729517661589,0.43349235,67851.0,67850.0,0.000827]
[1729517661809,0.175414,67836.0,67825.0,0.005828]
[1729517662043,0.175949,67827.0,67825.0,0.000828]
[1729517662308,0.175952,67826.0,67825.0,0.000828]
[1729517662510,0.4504621,67826.0,67825.0,0.000828]
[1729517662737,0.44984776,67826.0,67825.0,0.000828]
[1729517662958,0.3189342,67826.0,67825.0,0.000828]
[1729517664269,0.46789335,67826.0,67825.0,0.000828]
[1729517664503,0.46840935,67826.0,67825.0,0.000828]
[1729517664727,0.48240935,67826.0,67825.0,0.000828]